[Event "*** Titled Tuesday Blitz"]
[Site "Chess.com"]
[Date "2020.05.26"]
[Round "3"]
[White "mbachez"]
[Black "abhidabhi"]
[Result "1-0"]
[WhiteElo "2531"]
[BlackElo "2727"]
[TimeControl "180+1"]
[EndTime "10:28:27 PDT"]
[Termination "mbachez won on time"]

1. e4 {[%clk 0:02:59.8]} 1... e5 {[%clk 0:02:57.8]} 2. Nf3 {[%clk 0:02:59.6]}
2... Nc6 {[%clk 0:02:58.1]} 3. Bb5 {[%clk 0:02:59.5]} 3... a6 {[%clk 0:02:58]}
4. Ba4 {[%clk 0:02:59.8]} 4... Nf6 {[%clk 0:02:57.6]} 5. d3 {[%clk 0:03:00]}
5... b5 {[%clk 0:02:51.1]} 6. Bb3 {[%clk 0:02:59.9]} 6... Be7 {[%clk 0:02:51.4]}
7. c3 {[%clk 0:02:59.5]} 7... Bb7 {[%clk 0:02:51]} 8. h3 {[%clk 0:02:59.6]} 8...
O-O {[%clk 0:02:48.3]} 9. O-O {[%clk 0:02:59.6]} 9... d5 {[%clk 0:02:38.5]} 10.
Qe2 {[%clk 0:02:59.2]} 10... dxe4 {[%clk 0:02:30.3]} 11. dxe4 {[%clk 0:02:59.1]}
11... h6 {[%clk 0:02:00.2]} 12. Rd1 {[%clk 0:02:56.8]} 12... Qe8 {[%clk
0:01:58.5]} 13. Nbd2 {[%clk 0:02:48.8]} 13... Nd7 {[%clk 0:01:53.4]} 14. Bd5
{[%clk 0:02:46.2]} 14... Nb6 {[%clk 0:01:47.8]} 15. Bxc6 {[%clk 0:02:32.2]}
15... Qxc6 {[%clk 0:01:47.6]} 16. Nxe5 {[%clk 0:02:32.2]} 16... Qe6 {[%clk
0:01:47.7]} 17. Ndf3 {[%clk 0:02:25.4]} 17... Bd6 {[%clk 0:01:42.2]} 18. Bf4
{[%clk 0:02:20.6]} 18... f5 {[%clk 0:01:27.8]} 19. Nd4 {[%clk 0:02:16.8]} 19...
Qe8 {[%clk 0:01:18.2]} 20. exf5 {[%clk 0:02:10]} 20... Nd5 {[%clk 0:00:34]} 21.
Bg3 {[%clk 0:02:06]} 21... c5 {[%clk 0:00:29.2]} 22. Ndf3 {[%clk 0:01:18.6]}
22... Rxf5 {[%clk 0:00:28.7]} 23. Re1 {[%clk 0:01:18.9]} 23... Nf4 {[%clk
0:00:25.8]} 24. Bxf4 {[%clk 0:01:03.3]} 24... Rxf4 {[%clk 0:00:25.9]} 25. Qd2
{[%clk 0:01:03.4]} 25... Bxe5 {[%clk 0:00:12.3]} 26. Nxe5 {[%clk 0:00:53.6]}
26... Rf5 {[%clk 0:00:10.8]} 27. Ng4 {[%clk 0:00:50.9]} 27... Qg6 {[%clk
0:00:09.4]} 28. Re7 {[%clk 0:00:48.5]} 28... Bc6 {[%clk 0:00:08.4]} 29. f3
{[%clk 0:00:44.7]} 29... Rd5 {[%clk 0:00:06]} 30. Qe2 {[%clk 0:00:40.8]} 30...
Bd7 {[%clk 0:00:06]} 31. Ne5 {[%clk 0:00:34.7]} 31... Qf5 {[%clk 0:00:04.2]} 32.
g4 {[%clk 0:00:25.5]} 32... Qf4 {[%clk 0:00:02.8]} 33. Nxd7 {[%clk 0:00:22.8]}
33... Rd8 {[%clk 0:00:02.4]} 34. Qe6+ {[%clk 0:00:21.9]} 34... Kh7 {[%clk
0:00:02.4]} 35. Qxd5 {[%clk 0:00:20.1]} 35... Qg3+ {[%clk 0:00:02.5]} 36. Kf1
{[%clk 0:00:20.4]} 36... Qxh3+ {[%clk 0:00:03.4]} 37. Ke2 {[%clk 0:00:18.1]}
37... Qh2+ {[%clk 0:00:03.5]} 38. Ke3 {[%clk 0:00:17.6]} 38... Qh4 {[%clk
0:00:02.7]} 39. Qf5+ {[%clk 0:00:17.2]} 39... Kh8 {[%clk 0:00:02.2]} 40. Qf7
{[%clk 0:00:16.5]} 40... Qg5+ {[%clk 0:00:01.4]} 41. f4 {[%clk 0:00:15.5]} 41...
Qxg4 {[%clk 0:00:01.1]} 42. Qxg7+ {[%clk 0:00:15]} 42... Qxg7 {[%clk 0:00:01]}
43. Rxg7 {[%clk 0:00:15.2]} 43... Kxg7 {[%clk 0:00:01.9]} 44. Rg1+ {[%clk
0:00:15.5]} 44... Kf7 {[%clk 0:00:02]} 45. Ne5+ {[%clk 0:00:15.7]} 45... Kf8
{[%clk 0:00:01.4]} 46. Rh1 {[%clk 0:00:14.8]} 1-0

[Event "*** Titled Tuesday Blitz"]
[Site "Chess.com"]
[Date "2020.05.26"]
[Round "3"]
[White "chess94cu"]
[Black "leclash"]
[Result "1-0"]
[WhiteElo "2466"]
[BlackElo "2236"]
[TimeControl "180+1"]
[EndTime "10:28:27 PDT"]
[Termination "chess94cu won by resignation"]

1. d4 {[%clk 0:02:57.7]} 1... d5 {[%clk 0:02:59.4]} 2. c4 {[%clk 0:02:58]} 2...
e6 {[%clk 0:02:58.5]} 3. Nf3 {[%clk 0:02:58.6]} 3... c6 {[%clk 0:02:58.6]} 4. e3
{[%clk 0:02:59.1]} 4... Nf6 {[%clk 0:02:58.1]} 5. Nbd2 {[%clk 0:02:58.3]} 5...
Nbd7 {[%clk 0:02:58]} 6. b3 {[%clk 0:02:57.4]} 6... Bd6 {[%clk 0:02:57.6]} 7.
Bb2 {[%clk 0:02:57.3]} 7... O-O {[%clk 0:02:57.3]} 8. Be2 {[%clk 0:02:57.8]}
8... Re8 {[%clk 0:02:56.4]} 9. O-O {[%clk 0:02:58.2]} 9... e5 {[%clk 0:02:40.2]}
10. dxe5 {[%clk 0:02:56.3]} 10... Nxe5 {[%clk 0:02:41.1]} 11. cxd5 {[%clk
0:02:56.8]} 11... Nxd5 {[%clk 0:02:36.1]} 12. Nxe5 {[%clk 0:02:48.5]} 12... Bxe5
{[%clk 0:02:35.2]} 13. Bxe5 {[%clk 0:02:49.4]} 13... Rxe5 {[%clk 0:02:36.1]} 14.
Nc4 {[%clk 0:02:49.2]} 14... Re8 {[%clk 0:02:34.5]} 15. Bf3 {[%clk 0:02:47.9]}
15... Be6 {[%clk 0:02:26.3]} 16. Qd4 {[%clk 0:02:45.7]} 16... Qf6 {[%clk
0:02:18.5]} 17. Rfd1 {[%clk 0:02:37.3]} 17... Nc3 {[%clk 0:01:56.7]} 18. Qxf6
{[%clk 0:02:33.5]} 18... gxf6 {[%clk 0:01:54.9]} 19. Rd3 {[%clk 0:02:27.1]}
19... Nd5 {[%clk 0:01:47.2]} 20. Rad1 {[%clk 0:02:24.5]} 20... Kf8 {[%clk
0:01:41.9]} 21. Nd6 {[%clk 0:02:16.7]} 21... Re7 {[%clk 0:01:36]} 22. e4 {[%clk
0:02:09.8]} 22... Nf4 {[%clk 0:01:33.3]} 23. R3d2 {[%clk 0:02:08.2]} 23... Rd8
{[%clk 0:01:27.6]} 24. g3 {[%clk 0:01:46.4]} 24... Ng6 {[%clk 0:01:16.4]} 25.
Be2 {[%clk 0:01:36.8]} 25... Red7 {[%clk 0:01:15.5]} 26. Nc4 {[%clk 0:01:22.2]}
26... Rxd2 {[%clk 0:01:13.5]} 27. Rxd2 {[%clk 0:01:22]} 27... Rxd2 {[%clk
0:01:13.2]} 28. Nxd2 {[%clk 0:01:22.9]} 28... f5 {[%clk 0:01:13]} 29. f4 {[%clk
0:01:18.7]} 29... fxe4 {[%clk 0:01:10.7]} 30. Nxe4 {[%clk 0:01:19.6]} 30... Ke7
{[%clk 0:00:53.1]} 31. Kf2 {[%clk 0:01:18.6]} 31... b6 {[%clk 0:00:47.9]} 32.
Ke3 {[%clk 0:01:18.6]} 32... f6 {[%clk 0:00:46.4]} 33. h4 {[%clk 0:01:16.1]}
33... Bd5 {[%clk 0:00:41.7]} 34. h5 {[%clk 0:01:13]} 34... Nf8 {[%clk
0:00:39.7]} 35. Nc3 {[%clk 0:01:11.8]} 35... Bg2 {[%clk 0:00:38]} 36. h6 {[%clk
0:01:05.9]} 36... f5 {[%clk 0:00:34.5]} 37. g4 {[%clk 0:00:54.1]} 37... fxg4
{[%clk 0:00:33.2]} 38. Bxg4 {[%clk 0:00:55]} 38... Kf6 {[%clk 0:00:32.2]} 39.
Ne4+ {[%clk 0:00:54.5]} 39... Bxe4 {[%clk 0:00:31.5]} 40. Kxe4 {[%clk
0:00:55.4]} 40... Kg6 {[%clk 0:00:31]} 41. Ke5 {[%clk 0:00:52.3]} 41... Kxh6
{[%clk 0:00:31.2]} 42. Kf6 {[%clk 0:00:52.3]} 42... c5 {[%clk 0:00:27.1]} 43.
Kf7 {[%clk 0:00:51]} 43... Ng6 {[%clk 0:00:26.9]} 44. Kf6 {[%clk 0:00:36.6]}
44... Nxf4 {[%clk 0:00:26]} 45. Bf3 {[%clk 0:00:37.3]} 45... Nd3 {[%clk
0:00:24.3]} 46. a3 {[%clk 0:00:30.8]} 46... a5 {[%clk 0:00:22.6]} 47. Be4 {[%clk
0:00:28]} 47... Nc1 {[%clk 0:00:19.3]} 48. Bd5 {[%clk 0:00:28.1]} 48... Kh5
{[%clk 0:00:18.4]} 49. Kf5 {[%clk 0:00:28.1]} 49... Ne2 {[%clk 0:00:14.7]} 50.
Bf3+ {[%clk 0:00:27.4]} 50... Kh6 {[%clk 0:00:14]} 51. Bxe2 {[%clk 0:00:27.5]}
51... Kg7 {[%clk 0:00:14.4]} 52. Ke5 {[%clk 0:00:27.3]} 1-0

[Event "*** Titled Tuesday Blitz"]
[Site "Chess.com"]
[Date "2020.05.26"]
[Round "3"]
[White "HanSchut"]
[Black "konradrutkowski"]
[Result "1-0"]
[WhiteElo "2155"]
[BlackElo "2302"]
[TimeControl "180+1"]
[EndTime "10:28:27 PDT"]
[Termination "HanSchut won by resignation"]

1. e4 {[%clk 0:03:00.9]} 1... e5 {[%clk 0:02:59.7]} 2. Nf3 {[%clk 0:03:01.3]}
2... Nc6 {[%clk 0:03:00]} 3. Bc4 {[%clk 0:03:01.9]} 3... Nf6 {[%clk 0:02:59.5]}
4. d4 {[%clk 0:03:02.1]} 4... exd4 {[%clk 0:02:58.2]} 5. e5 {[%clk 0:03:03]}
5... d5 {[%clk 0:02:58.4]} 6. Bb5 {[%clk 0:03:03.3]} 6... Ne4 {[%clk 0:02:58.3]}
7. Nxd4 {[%clk 0:03:03.7]} 7... Bd7 {[%clk 0:02:48.2]} 8. Bxc6 {[%clk
0:03:02.8]} 8... bxc6 {[%clk 0:02:48.8]} 9. O-O {[%clk 0:03:03.5]} 9... Bc5
{[%clk 0:02:49]} 10. f3 {[%clk 0:03:03.9]} 10... Ng5 {[%clk 0:02:48.8]} 11. Be3
{[%clk 0:03:04.5]} 11... Bb6 {[%clk 0:02:41.9]} 12. f4 {[%clk 0:03:04.3]} 12...
Ne4 {[%clk 0:02:41.8]} 13. Nd2 {[%clk 0:03:05.2]} 13... c5 {[%clk 0:02:41.1]}
14. N4f3 {[%clk 0:03:04.9]} 14... Nxd2 {[%clk 0:02:39]} 15. Qxd2 {[%clk
0:03:03.5]} 15... Bf5 {[%clk 0:02:35.2]} 16. c3 {[%clk 0:02:46.3]} 16... c4
{[%clk 0:02:20.2]} 17. Nd4 {[%clk 0:02:38.7]} 17... Be4 {[%clk 0:02:16.2]} 18.
f5 {[%clk 0:02:34.1]} 18... c5 {[%clk 0:01:57.4]} 19. Nb5 {[%clk 0:02:10.1]}
19... O-O {[%clk 0:01:47.4]} 20. Nd6 {[%clk 0:01:56.3]} 20... Bd3 {[%clk
0:01:45.9]} 21. f6 {[%clk 0:01:50.8]} 21... Bxf1 {[%clk 0:01:17.6]} 22. Rxf1
{[%clk 0:01:31.3]} 22... gxf6 {[%clk 0:00:45.8]} 23. Rxf6 {[%clk 0:01:18]} 23...
Re8 {[%clk 0:00:20.6]} 24. Nxf7 {[%clk 0:00:52.4]} 24... Qd7 {[%clk 0:00:16.5]}
25. Qf2 {[%clk 0:00:43.3]} 25... Re6 {[%clk 0:00:06.5]} 26. Qf5 {[%clk
0:00:20.5]} 26... Rxf6 {[%clk 0:00:04.3]} 27. Qxd7 {[%clk 0:00:19.8]} 27... Rxf7
{[%clk 0:00:05.2]} 28. Qxd5 {[%clk 0:00:19.8]} 28... Rf8 {[%clk 0:00:03.7]} 29.
h4 {[%clk 0:00:18.3]} 29... Kg7 {[%clk 0:00:03.3]} 30. Bg5 {[%clk 0:00:16.6]}
30... Rf1+ {[%clk 0:00:03.7]} 31. Kh2 {[%clk 0:00:16.6]} 31... Bc7 {[%clk
0:00:04]} 32. g3 {[%clk 0:00:14.7]} 32... R1f7 {[%clk 0:00:04.5]} 33. Bf6+
{[%clk 0:00:14.9]} 33... Rxf6 {[%clk 0:00:04.7]} 34. exf6+ {[%clk 0:00:15.4]}
34... Rxf6 {[%clk 0:00:05.5]} 35. Qg5+ {[%clk 0:00:14.3]} 35... Kf7 {[%clk
0:00:05.4]} 36. Qd5+ {[%clk 0:00:13.6]} 36... Kg7 {[%clk 0:00:04.9]} 37. Qd7+
{[%clk 0:00:12.2]} 37... Rf7 {[%clk 0:00:04.8]} 38. Qg4+ {[%clk 0:00:12.8]}
38... Kf8 {[%clk 0:00:04.7]} 39. Qxc4 {[%clk 0:00:12.1]} 39... Bb6 {[%clk
0:00:03.8]} 40. Kh3 {[%clk 0:00:10.4]} 40... h5 {[%clk 0:00:03.2]} 41. Qd5
{[%clk 0:00:09.8]} 41... Rf2 {[%clk 0:00:03.1]} 42. Qxh5 {[%clk 0:00:08.8]}
42... Rxb2 {[%clk 0:00:03.8]} 43. Qf5+ {[%clk 0:00:07.5]} 43... Ke7 {[%clk
0:00:03.9]} 44. h5 {[%clk 0:00:07.4]} 44... Rxa2 {[%clk 0:00:03.8]} 45. Qe5+
{[%clk 0:00:06.8]} 45... Kf8 {[%clk 0:00:03.6]} 46. Qf6+ {[%clk 0:00:06.6]}
46... Ke8 {[%clk 0:00:03.9]} 47. Qe6+ {[%clk 0:00:07]} 47... Kf8 {[%clk
0:00:04.1]} 48. Qxa2 {[%clk 0:00:07.9]} 1-0

[Event "*** Titled Tuesday Blitz"]
[Site "Chess.com"]
[Date "2020.05.26"]
[Round "3"]
[White "SantoBlue"]
[Black "grzechu96"]
[Result "0-1"]
[WhiteElo "2788"]
[BlackElo "2621"]
[TimeControl "180+1"]
[EndTime "10:28:30 PDT"]
[Termination "grzechu96 won by resignation"]

1. e4 {[%clk 0:03:00.9]} 1... e5 {[%clk 0:02:59.3]} 2. Nf3 {[%clk 0:02:58.6]}
2... Nc6 {[%clk 0:02:59.6]} 3. Bb5 {[%clk 0:02:58.5]} 3... a6 {[%clk 0:02:59.7]}
4. Ba4 {[%clk 0:02:58.7]} 4... Nf6 {[%clk 0:02:59.7]} 5. O-O {[%clk 0:02:58.7]}
5... b5 {[%clk 0:02:54.9]} 6. Bb3 {[%clk 0:02:58.3]} 6... Bc5 {[%clk 0:02:55.5]}
7. Nc3 {[%clk 0:02:57.6]} 7... d6 {[%clk 0:02:46.7]} 8. Nd5 {[%clk 0:02:57]}
8... h6 {[%clk 0:02:42]} 9. c3 {[%clk 0:02:55.4]} 9... Ba7 {[%clk 0:02:14.1]}
10. Nxf6+ {[%clk 0:02:51.7]} 10... Qxf6 {[%clk 0:02:14]} 11. Bd5 {[%clk
0:02:52.6]} 11... Bb7 {[%clk 0:01:57]} 12. a4 {[%clk 0:02:52.4]} 12... Nd8
{[%clk 0:01:22.8]} 13. Bxb7 {[%clk 0:02:31.6]} 13... Nxb7 {[%clk 0:01:23.7]} 14.
Qe2 {[%clk 0:02:22.4]} 14... c6 {[%clk 0:01:21.9]} 15. d4 {[%clk 0:02:17.6]}
15... O-O {[%clk 0:01:17.3]} 16. Be3 {[%clk 0:02:16.8]} 16... exd4 {[%clk
0:00:50.2]} 17. cxd4 {[%clk 0:02:15.9]} 17... Rfe8 {[%clk 0:00:35.4]} 18. Qc2
{[%clk 0:02:10.9]} 18... c5 {[%clk 0:00:24.7]} 19. axb5 {[%clk 0:01:55]} 19...
axb5 {[%clk 0:00:24.2]} 20. d5 {[%clk 0:01:35.3]} 20... Bb6 {[%clk 0:00:24.6]}
21. Nd2 {[%clk 0:01:26.7]} 21... Qe7 {[%clk 0:00:07]} 22. h3 {[%clk 0:01:22.7]}
22... Qd7 {[%clk 0:00:06.6]} 23. Rae1 {[%clk 0:01:05.2]} 23... Bd8 {[%clk
0:00:04.6]} 24. f4 {[%clk 0:01:04.5]} 24... Bf6 {[%clk 0:00:04.8]} 25. Nf3
{[%clk 0:01:04.6]} 25... Na5 {[%clk 0:00:04.8]} 26. Bc1 {[%clk 0:00:57.7]} 26...
Nc4 {[%clk 0:00:04.8]} 27. b3 {[%clk 0:00:58]} 27... Nb6 {[%clk 0:00:05.3]} 28.
e5 {[%clk 0:00:55.9]} 28... dxe5 {[%clk 0:00:05.5]} 29. fxe5 {[%clk 0:00:56.8]}
29... Be7 {[%clk 0:00:05.2]} 30. d6 {[%clk 0:00:56.5]} 30... Bf8 {[%clk
0:00:04.8]} 31. Nh4 {[%clk 0:00:54.6]} 31... Qe6 {[%clk 0:00:04.8]} 32. Nf5
{[%clk 0:00:54.5]} 32... Nd7 {[%clk 0:00:05.2]} 33. Bf4 {[%clk 0:00:34.9]} 33...
Ra6 {[%clk 0:00:05.6]} 34. Re3 {[%clk 0:00:33.8]} 34... Rea8 {[%clk 0:00:05.1]}
35. Rg3 {[%clk 0:00:31.6]} 35... Kh8 {[%clk 0:00:05.6]} 36. Qe4 {[%clk
0:00:29.9]} 36... Ra2 {[%clk 0:00:05.4]} 37. Kh2 {[%clk 0:00:28.6]} 37... Ra1
{[%clk 0:00:05.5]} 38. Rxa1 {[%clk 0:00:26.1]} 38... Rxa1 {[%clk 0:00:06.4]} 39.
Bxh6 {[%clk 0:00:17]} 39... gxh6 {[%clk 0:00:06.4]} 40. Qg4 {[%clk 0:00:17.3]}
40... Qg6 {[%clk 0:00:06.8]} 41. Qxg6 {[%clk 0:00:13.8]} 41... fxg6 {[%clk
0:00:07.7]} 42. Rxg6 {[%clk 0:00:03.9]} 42... Nxe5 {[%clk 0:00:07.7]} 43. Re6
{[%clk 0:00:02.4]} 43... Nf7 {[%clk 0:00:08.1]} 44. d7 {[%clk 0:00:01.6]} 44...
Ra8 {[%clk 0:00:07.3]} 45. Re8 {[%clk 0:00:02.1]} 45... Rd8 {[%clk 0:00:07.9]}
46. Nxh6 {[%clk 0:00:02.2]} 46... Rxd7 {[%clk 0:00:08.2]} 47. Rxf8+ {[%clk
0:00:01.8]} 47... Kg7 {[%clk 0:00:08.9]} 48. Rxf7+ {[%clk 0:00:02.4]} 48... Rxf7
{[%clk 0:00:09.8]} 49. Nxf7 {[%clk 0:00:03.3]} 49... Kxf7 {[%clk 0:00:10.4]} 50.
Kg3 {[%clk 0:00:03]} 50... c4 {[%clk 0:00:11]} 0-1

[Event "*** Titled Tuesday Blitz"]
[Site "Chess.com"]
[Date "2020.05.26"]
[Round "3"]
[White "Roaccutane"]
[Black "PlayChessSimple"]
[Result "1-0"]
[WhiteElo "2728"]
[BlackElo "2494"]
[TimeControl "180+1"]
[EndTime "10:28:30 PDT"]
[Termination "Roaccutane won on time"]

1. d4 {[%clk 0:03:00.9]} 1... e6 {[%clk 0:02:59.9]} 2. e4 {[%clk 0:02:59.9]}
2... d5 {[%clk 0:02:59.2]} 3. Nc3 {[%clk 0:02:59.6]} 3... Nf6 {[%clk 0:02:58.5]}
4. Bg5 {[%clk 0:02:59.2]} 4... Bb4 {[%clk 0:02:57.9]} 5. e5 {[%clk 0:02:55.8]}
5... h6 {[%clk 0:02:57.9]} 6. exf6 {[%clk 0:02:52.6]} 6... hxg5 {[%clk
0:02:56.9]} 7. fxg7 {[%clk 0:02:52.8]} 7... Rg8 {[%clk 0:02:56.8]} 8. h4 {[%clk
0:02:45.3]} 8... gxh4 {[%clk 0:02:54.6]} 9. Qg4 {[%clk 0:02:39.6]} 9... Qf6
{[%clk 0:02:52.5]} 10. Nf3 {[%clk 0:02:39.2]} 10... Qxg7 {[%clk 0:02:48.3]} 11.
Qxg7 {[%clk 0:02:36.6]} 11... Rxg7 {[%clk 0:02:47.9]} 12. Rxh4 {[%clk
0:02:37.5]} 12... Nd7 {[%clk 0:02:44.6]} 13. Rh8+ {[%clk 0:02:27]} 13... Nf8
{[%clk 0:02:43.7]} 14. Kd2 {[%clk 0:02:20.9]} 14... Bd7 {[%clk 0:02:40.1]} 15.
a3 {[%clk 0:02:19.9]} 15... Bd6 {[%clk 0:02:29.7]} 16. g3 {[%clk 0:02:19.3]}
16... O-O-O {[%clk 0:02:28.5]} 17. Bd3 {[%clk 0:02:19]} 17... Ng6 {[%clk
0:02:17]} 18. Rxd8+ {[%clk 0:02:19.9]} 18... Kxd8 {[%clk 0:02:16.7]} 19. Ne2
{[%clk 0:02:15.1]} 19... c5 {[%clk 0:02:10.8]} 20. Rh1 {[%clk 0:02:05.2]} 20...
cxd4 {[%clk 0:02:04.5]} 21. Nfxd4 {[%clk 0:01:55.3]} 21... a6 {[%clk 0:01:53.4]}
22. Rh6 {[%clk 0:01:45.8]} 22... Ne7 {[%clk 0:01:47.8]} 23. b4 {[%clk
0:01:29.9]} 23... Kc7 {[%clk 0:01:44.4]} 24. c4 {[%clk 0:01:23.9]} 24... dxc4
{[%clk 0:01:27.2]} 25. Bxc4 {[%clk 0:01:24.1]} 25... e5 {[%clk 0:01:26.6]} 26.
Nc2 {[%clk 0:01:13.9]} 26... b5 {[%clk 0:01:13.6]} 27. Bb3 {[%clk 0:01:09.3]}
27... f5 {[%clk 0:00:53.3]} 28. Nc3 {[%clk 0:01:03.9]} 28... Bc6 {[%clk
0:00:45]} 29. Ne3 {[%clk 0:00:52.1]} 29... f4 {[%clk 0:00:43.9]} 30. gxf4 {[%clk
0:00:52.2]} 30... exf4 {[%clk 0:00:43.7]} 31. Ned5+ {[%clk 0:00:52.3]} 31...
Nxd5 {[%clk 0:00:40.2]} 32. Bxd5 {[%clk 0:00:52.3]} 32... Bd7 {[%clk 0:00:25.9]}
33. Ne4 {[%clk 0:00:48.5]} 33... Be7 {[%clk 0:00:17.4]} 34. Rxa6 {[%clk
0:00:45.2]} 34... Rg2 {[%clk 0:00:13.4]} 35. Ke2 {[%clk 0:00:27]} 35... Bg4+
{[%clk 0:00:12.4]} 36. Kf1 {[%clk 0:00:25.7]} 36... Bh3 {[%clk 0:00:08.9]} 37.
Ke1 {[%clk 0:00:25.7]} 37... Rg1+ {[%clk 0:00:08.2]} 38. Kd2 {[%clk 0:00:25.4]}
38... Bg4 {[%clk 0:00:07.9]} 39. Ra7+ {[%clk 0:00:22.5]} 39... Kd8 {[%clk
0:00:06.8]} 40. Bc6 {[%clk 0:00:17.2]} 40... Rd1+ {[%clk 0:00:05.5]} 41. Kc3
{[%clk 0:00:16.9]} 41... Rc1+ {[%clk 0:00:04.6]} 42. Kd4 {[%clk 0:00:16.6]}
42... Rxc6 {[%clk 0:00:04.5]} 43. Ke5 {[%clk 0:00:17.3]} 43... Rc4 {[%clk
0:00:03.6]} 44. Kxf4 {[%clk 0:00:15.2]} 44... Bd7 {[%clk 0:00:03.6]} 45. f3
{[%clk 0:00:15.4]} 45... Bc6 {[%clk 0:00:03.1]} 46. Ke5 {[%clk 0:00:16.3]} 46...
Bxe4 {[%clk 0:00:03]} 47. fxe4 {[%clk 0:00:17.2]} 47... Rc7 {[%clk 0:00:02.8]}
48. Ra8+ {[%clk 0:00:17]} 48... Rc8 {[%clk 0:00:03]} 49. Ra5 {[%clk 0:00:17.9]}
49... Rb8 {[%clk 0:00:02.2]} 50. Kd5 {[%clk 0:00:18]} 50... Kd7 {[%clk
0:00:01.7]} 51. Ra7+ {[%clk 0:00:18.1]} 51... Ke8 {[%clk 0:00:01.8]} 52. e5
{[%clk 0:00:19]} 1-0

[Event "*** Titled Tuesday Blitz"]
[Site "Chess.com"]
[Date "2020.05.26"]
[Round "3"]
[White "dosto07"]
[Black "EndGameDestroyer"]
[Result "1-0"]
[WhiteElo "2127"]
[BlackElo "2287"]
[TimeControl "180+1"]
[EndTime "10:28:31 PDT"]
[Termination "dosto07 won by resignation"]

1. e4 {[%clk 0:02:07.4]} 1... Nc6 {[%clk 0:02:57.5]} 2. Nf3 {[%clk 0:02:06.6]}
2... e5 {[%clk 0:02:56.2]} 3. Bb5 {[%clk 0:02:05.4]} 3... Nf6 {[%clk 0:02:56]}
4. d3 {[%clk 0:02:04.5]} 4... a6 {[%clk 0:02:55.5]} 5. Bxc6 {[%clk 0:02:03.8]}
5... dxc6 {[%clk 0:02:53]} 6. O-O {[%clk 0:02:04.7]} 6... Bd6 {[%clk 0:02:49.1]}
7. Nbd2 {[%clk 0:02:04.2]} 7... b5 {[%clk 0:02:45.8]} 8. a4 {[%clk 0:02:03.2]}
8... Bb7 {[%clk 0:02:45.8]} 9. d4 {[%clk 0:01:58.7]} 9... Nd7 {[%clk 0:02:40.4]}
10. dxe5 {[%clk 0:01:57.3]} 10... Nxe5 {[%clk 0:02:39.7]} 11. Nxe5 {[%clk
0:01:56.8]} 11... Bxe5 {[%clk 0:02:39.7]} 12. Nf3 {[%clk 0:01:57.3]} 12... Qxd1
{[%clk 0:02:28.4]} 13. Rxd1 {[%clk 0:01:56.9]} 13... Bd6 {[%clk 0:02:28.6]} 14.
Nd4 {[%clk 0:01:36.2]} 14... O-O {[%clk 0:02:19.7]} 15. Nf5 {[%clk 0:01:32.8]}
15... Be5 {[%clk 0:02:11.4]} 16. c3 {[%clk 0:01:23.9]} 16... Rad8 {[%clk
0:02:01.6]} 17. Be3 {[%clk 0:01:17.4]} 17... g6 {[%clk 0:01:57.5]} 18. Nh6+
{[%clk 0:01:02]} 18... Kg7 {[%clk 0:01:57.7]} 19. Ng4 {[%clk 0:01:01.7]} 19...
Bd6 {[%clk 0:01:46.4]} 20. Bh6+ {[%clk 0:00:59.6]} 20... Kg8 {[%clk 0:01:44.5]}
21. Bxf8 {[%clk 0:00:59.3]} 21... Rxf8 {[%clk 0:01:41.7]} 22. e5 {[%clk
0:00:56.2]} 22... Bc5 {[%clk 0:01:39.1]} 23. Rd7 {[%clk 0:00:51.9]} 23... Kg7
{[%clk 0:00:59]} 24. Rxc7 {[%clk 0:00:49.6]} 24... Bc8 {[%clk 0:00:57.4]} 25.
Nf6 {[%clk 0:00:42.7]} 25... Rd8 {[%clk 0:00:49.5]} 26. Rxc6 {[%clk 0:00:32.4]}
26... Ba7 {[%clk 0:00:34]} 27. axb5 {[%clk 0:00:30.3]} 27... axb5 {[%clk
0:00:31.4]} 28. Rxc8 {[%clk 0:00:24]} 28... Rxc8 {[%clk 0:00:28.3]} 29. Rxa7
{[%clk 0:00:22.8]} 29... b4 {[%clk 0:00:27.7]} 30. h3 {[%clk 0:00:20.1]} 30...
bxc3 {[%clk 0:00:26.3]} 31. bxc3 {[%clk 0:00:19.6]} 31... Rxc3 {[%clk
0:00:27.2]} 32. Ng4 {[%clk 0:00:18.9]} 32... h5 {[%clk 0:00:24.1]} 33. Ne3
{[%clk 0:00:18.2]} 33... Rc5 {[%clk 0:00:23.7]} 34. e6 {[%clk 0:00:17.7]} 34...
Kf8 {[%clk 0:00:22.6]} 35. Rxf7+ {[%clk 0:00:17.9]} 35... Ke8 {[%clk 0:00:22.6]}
36. g4 {[%clk 0:00:17.6]} 36... Re5 {[%clk 0:00:19.6]} 37. gxh5 {[%clk
0:00:15.9]} 37... gxh5 {[%clk 0:00:19.5]} 38. Rf6 {[%clk 0:00:15]} 38... Ke7
{[%clk 0:00:18.9]} 39. Rh6 {[%clk 0:00:14.6]} 39... Rg5+ {[%clk 0:00:18.6]} 40.
Kh2 {[%clk 0:00:13.8]} 40... Ra5 {[%clk 0:00:17.8]} 41. h4 {[%clk 0:00:13.1]}
41... Re5 {[%clk 0:00:17.1]} 42. Kg3 {[%clk 0:00:12.7]} 42... Ra5 {[%clk
0:00:16.9]} 43. Kf4 {[%clk 0:00:12.4]} 43... Ra4+ {[%clk 0:00:14.8]} 44. Kg5
{[%clk 0:00:11.4]} 44... Ra5+ {[%clk 0:00:14]} 45. Nf5+ {[%clk 0:00:11]} 45...
Kd8 {[%clk 0:00:10.6]} 46. Rh7 {[%clk 0:00:08.4]} 46... Re5 {[%clk 0:00:08.1]}
47. Kf6 {[%clk 0:00:07.9]} 47... Re1 {[%clk 0:00:04]} 48. e7+ {[%clk 0:00:06.8]}
48... Kd7 {[%clk 0:00:04.2]} 49. Rh8 {[%clk 0:00:05.9]} 49... Re6+ {[%clk
0:00:03.7]} 50. Kf7 {[%clk 0:00:05.5]} 50... Rxe7+ {[%clk 0:00:02.2]} 51. Nxe7
{[%clk 0:00:04.6]} 1-0